[Event "51st Rilton Cup 2023-24"]
[Site "Stockholm"]
[Date "2024.01.05"]
[Round "9.12"]
[White "Bailet, Pierre"]
[Black "Falkevall, Axel"]
[Result "1-0"]
[ECO "C77"]
[WhiteElo "2492"]
[BlackElo "2311"]
[Annotator "TA"]
[PlyCount "71"]
[EventDate "2023.12.27"]
[EventType "swiss"]
[EventCountry "SWE"]
[SourceTitle "playchess.com"]
[Source "ChessBase"]
[SourceQuality "1"]
[TimeControl "40/5400+30:1800+30"]

{[%evp 16,71,0,-11,0,5,7,-34,0,0,0,0,0,0,0,0,54,56,65,61,60,66,67,72,69,70,59,59,86,83,81,92,124,129,166,179,225,225,222,216,205,214,247,240,353,318,541,464,29992,29993,29993,29994,29994,29995,29995,29996,29996,29997]} 1. e4 {[%emt 0:00:08]} e5 {[%emt 0:00:08]} 2. Nf3 {[%emt 0:00:09]} Nc6 {[%emt 0:00:04]} 3. Bb5 {[%emt 0:00:17]} a6 {[%emt 0:00:05]} 4. Ba4 {[%emt 0:00:07]} Nf6 {[%emt 0:00:08]} 5. d3 {[%emt 0:01:03]} d6 {[%emt 0:00:35]} 6. c4 {[%emt 0:01:35]} g6 {[%emt 0:02:21]} 7. Nc3 {[%emt 0:01:47]} Bg7 {[%emt 0:00:41]} 8. h3 {[%emt 0:01:34]} O-O {[%emt 0:03:23]} 9. O-O {[%emt 0:02:04] 9.0-0 is better than 9.Be3.} Nd7 {[%emt 0:05:37] C77: Ruy Lopez: 3...a6 4 Ba4 Nf6, unusual lines.} 10. Bg5 {[%emt 0:14:17]} f6 {[%emt 0:01:19]} 11. Bh4 {[%emt 0:00:12]} Nc5 {[%emt 0:04:02] Black is slightly better.} 12. Bxc6 {[%emt 0:02:39]} bxc6 {[%emt 0:00:33]} 13. d4 {[%emt 0:01:10]} exd4 {[%emt 0:04:59]} 14. Nxd4 {[%emt 0:01:45]} Qe8 {[%emt 0:00:59]} 15. Re1 {[%emt 0:03:24] [#]} Ne6 $146 {[%emt 0:07:12] [#]} (15... Bd7 $11) ({Predecessor:} 15... Rb8 16. Rb1 a5 17. Bg3 Bd7 18. Qd2 Qf7 19. b3 Rfe8 20. Bf4 Re7 21. Re2 a4 {½-½ Fedoseev,V (2701)-Kovalev,V (2623) Chess.com Rapid Wk11 Swiss 2022 (9)}) 16. Nf5 $1 $14 {[%emt 0:15:13]} gxf5 {[%emt 0:01:03]} (16... Qf7 17. Nxg7) 17. exf5 {[%emt 0:00:03]} Qf7 {[%emt 0:00:26] Threatens to win with ...Nc5.} 18. fxe6 {[%emt 0:00:04]} Bxe6 {[%emt 0:00:05] [#]} 19. c5 $1 {[%emt 0:13:37] White is more active.} dxc5 {[%emt 0:06:02]} 20. Qa4 {[%emt 0:02:05]} Bd5 {[%emt 0:03:05]} 21. Qa3 {[%emt 0:03:47]} f5 {[%emt 0:17:27] White stays focused until the end.} 22. Qxc5 {[%emt 0:06:13] Strongly threatening Re7.} Bxc3 {[%emt 0:00:53]} 23. Qxc3 {[%emt 0:01:09]} Qg6 {[%emt 0:01:11][%csl Gd5][%cal Rg6g2]} 24. f3 {[%emt 0:01:49]} Rfe8 {[%emt 0:04:52]} 25. b3 {[%emt 0:02:43][%cal Bb2b3,Bb3a4][%mdl 32]} a5 {[%emt 0:02:48] [#]} (25... Qd6 {was called for.} 26. Rad1 Kf7) 26. Rxe8+ $1 $18 {[%emt 0:03:04]} Rxe8 {[%emt 0:00:17]} 27. Re1 {[%emt 0:00:39]} ({Not} 27. Qxa5 Re2 28. Bf2 Bxf3 $17) 27... Rxe1+ {[%emt 0:04:25]} 28. Bxe1 {[%emt 0:00:11][%mdl 4096] Endgame KQB-KQB} f4 {[%emt 0:07:31]} 29. Kh2 {[%emt 0:04:08]} (29. Qxa5 Bxf3 30. Qd2 (30. Qxc7 $2 Qxg2#) 30... Bd5 $14) 29... a4 {[%emt 0:01:41]} (29... h6 {might work better.} 30. Qd4 Qg5) 30. bxa4 {[%emt 0:00:15]} Qb1 $2 {[%emt 0:01:13]} (30... Qd6 31. a5 c5) 31. Qe5 {[%emt 0:01:48] Intending Qe8+ and mate.} Qxa2 {[%emt 0:00:48]} (31... Qg6 $18 32. a5 (32. Qxf4 Qd6 $18) 32... Bc4 33. Qxc7 Bf1 34. Qb8+ (34. Qxf4 $2 Qxg2#) 34... Kg7 35. Bc3+ (35. Qxf4 $2 Qxg2#) 35... Kf7 36. Qxf4+ Ke7 37. Qc7+ Ke8 38. Qc8+ Kf7 39. Qd7+ Kg8) 32. Qe8+ {[%emt 0:00:31] White mates.} Kg7 {[%emt 0:00:29]} 33. Bc3+ {[%emt 0:00:08]} Kh6 {[%emt 0:00:03]} 34. Qf8+ {[%emt 0:00:21]} Kh5 {[%emt 0:00:47]} 35. Qf5+ {[%emt 0:00:18]} Kh6 {[%emt 0:00:09]} 36. Bf6 {[%emt 0:00:23] Weighted Error Value: White=0.06 (flawless) /Black=0.51} 1-0

[Event "51st Rilton Cup 2023-24"]
[Site "Stockholm"]
[Date "2024.01.05"]
[Round "9.13"]
[White "Shohat, Yotam"]
[Black "Sidhant, Mohapatra"]
[Result "1-0"]
[ECO "C88"]
[WhiteElo "2332"]
[BlackElo "2408"]
[Annotator "RC"]
[PlyCount "107"]
[EventDate "2023.12.27"]
[EventType "swiss"]
[EventCountry "SWE"]
[SourceTitle "playchess.com"]
[Source "ChessBase"]
[SourceQuality "1"]
[TimeControl "40/5400+30:1800+30"]

1. e4 {[%emt 0:00:21]} e5 {[%emt 0:05:30]} 2. Nf3 {[%emt 0:00:05]} Nc6 {[%emt 0:00:13]} 3. Bb5 {[%emt 0:00:04]} a6 {[%emt 0:00:07]} 4. Ba4 {[%emt 0:00:03]} Nf6 {[%emt 0:00:06]} 5. O-O {[%emt 0:00:05]} Be7 {[%emt 0:00:15]} 6. Re1 {[%emt 0:00:07]} b5 {[%emt 0:00:05]} 7. Bb3 {[%emt 0:00:03]} O-O {[%emt 0:00:16]} 8. h3 {[%emt 0:00:45]} Bb7 {[%emt 0:02:32]} 9. d3 {[%emt 0:00:40]} Re8 {[%emt 0:05:42]} 10. Nc3 {[%emt 0:04:06]} h6 {[%emt 0:00:33]} 11. a4 {[%emt 0:05:06]} Na5 {[%emt 0:09:53]} 12. Ba2 {[%emt 0:00:26]} b4 {[%emt 0:00:55]} 13. Ne2 {[%emt 0:03:37]} Bf8 {[%emt 0:06:49]} 14. Ng3 {[%emt 0:02:44]} b3 {[%emt 0:00:37]} 15. cxb3 {[%emt 0:00:07]} Nc6 {[%emt 0:00:15]} 16. d4 {[%emt 0:02:08]} d6 {[%emt 0:00:43]} 17. Bb1 {[%emt 0:09:36]} Nb4 {[%emt 0:01:58]} 18. Bd2 {[%emt 0:03:04]} c5 {[%emt 0:00:06]} 19. d5 {[%emt 0:04:21]} Bc8 {[%emt 0:00:36]} 20. Bc3 {[%emt 0:02:52]} Rb8 {[%emt 0:00:50]} 21. Nd2 {[%emt 0:00:39]} g6 {[%emt 0:02:48]} 22. Rf1 {[%emt 0:02:30]} Nh7 {[%emt 0:06:01]} 23. f4 {[%emt 0:06:24]} Qh4 {[%emt 0:04:13]} 24. Ne2 {[%emt 0:01:59]} exf4 {[%emt 0:00:30]} 25. Nf3 {[%emt 0:07:55]} Qd8 {[%emt 0:01:28]} 26. Nxf4 {[%emt 0:00:30]} Ng5 {[%emt 0:00:20]} 27. Nd2 {[%emt 0:08:15]} Bg7 {[%emt 0:00:18]} 28. h4 {[%emt 0:02:48]} Nh7 {[%emt 0:00:05]} 29. Qf3 {[%emt 0:00:16]} Rb7 {[%emt 0:02:27]} 30. Qg3 {[%emt 0:04:30]} Nf6 {[%emt 0:05:14]} 31. Bd3 {[%emt 0:05:29]} Nxd3 {[%emt 0:01:30]} 32. Qxd3 {[%emt 0:00:03]} Ng4 {[%emt 0:00:15]} 33. Bxg7 {[%emt 0:01:01]} Kxg7 {[%emt 0:00:04]} 34. Qg3 {[%emt 0:01:23]} Kh7 {[%emt 0:03:35]} 35. Rae1 {[%emt 0:06:29]} Ne5 {[%emt 0:03:29]} 36. Nc4 {[%emt 0:04:59]} Nxc4 {[%emt 0:05:27]} 37. bxc4 {[%emt 0:00:03]} Qf6 {[%emt 0:00:29]} 38. e5 {[%emt 0:12:00]} Rxe5 {[%emt 0:00:54]} 39. Nh5 {[%emt 0:00:22]} Qe7 {[%emt 0:01:17]} 40. Nf6+ {[%emt 0:00:02]} Kg7 {[%emt 0:00:55]} 41. Rxe5 {[%emt 0:03:35]} Qxe5 {[%emt 0:00:00]} 42. Qxe5 {[%emt 0:00:21]} dxe5 {[%emt 0:00:00]} 43. Ne8+ {[%emt 0:00:19]} Kf8 {[%emt 0:00:28]} 44. Nd6 {[%emt 0:00:06]} Rc7 {[%emt 0:00:07]} 45. h5 {[%emt 0:03:35]} gxh5 {[%emt 0:00:26]} 46. Rf6 {[%emt 0:03:38]} Bg4 {[%emt 0:04:19]} 47. a5 {[%emt 0:02:49]} Be2 {[%emt 0:07:09]} 48. Kf2 {[%emt 0:02:02]} Bd3 {[%emt 0:00:03]} 49. Ke3 {[%emt 0:00:22]} Bg6 {[%emt 0:02:18]} 50. Ne4 {[%emt 0:00:41]} Kg7 {[%emt 0:01:04]} 51. Rxa6 {[%emt 0:03:05]} f5 {[%emt 0:00:11]} 52. d6 {[%emt 0:01:08]} Rb7 {[%emt 0:00:53]} 53. Rb6 {[%emt 0:00:17]} Ra7 {[%emt 0:00:03]} 54. a6 {[%emt 0:00:32]} 1-0

[Event "51st Rilton Cup 2023-24"]
[Site "Stockholm"]
[Date "2024.01.05"]
[Round "9.14"]
[White "Dhulipalla Bala Chandra Prasad"]
[Black "Hedman, Erik"]
[Result "1-0"]
[ECO "A43"]
[WhiteElo "2396"]
[BlackElo "2323"]
[Annotator "RC"]
[PlyCount "57"]
[EventDate "2023.12.27"]
[EventType "swiss"]
[EventCountry "SWE"]
[SourceTitle "playchess.com"]
[Source "ChessBase"]
[SourceQuality "1"]
[TimeControl "40/5400+30:1800+30"]

1. d4 {[%emt 0:05:23]} Nf6 {[%emt 0:00:13]} 2. Nf3 {[%emt 0:00:08]} c5 {[%emt 0:00:54]} 3. d5 {[%emt 0:00:04]} b5 {[%emt 0:00:09]} 4. Bg5 {[%emt 0:04:41]} g6 {[%emt 0:02:54]} 5. d6 {[%emt 0:25:45]} exd6 {[%emt 0:11:40]} 6. Nc3 {[%emt 0:01:07]} h6 {[%emt 0:01:45]} 7. Bxf6 {[%emt 0:07:52]} Qxf6 {[%emt 0:00:05]} 8. Nxb5 {[%emt 0:00:07]} Na6 {[%emt 0:00:53]} 9. c3 {[%emt 0:00:36]} Bb7 {[%emt 0:00:14]} 10. e3 {[%emt 0:11:22]} d5 {[%emt 0:02:17]} 11. Be2 {[%emt 0:00:54]} Bg7 {[%emt 0:00:19]} 12. O-O {[%emt 0:07:19]} O-O {[%emt 0:00:06]} 13. Rb1 {[%emt 0:00:57]} Qc6 {[%emt 0:05:09]} 14. c4 {[%emt 0:03:17]} Rfc8 {[%emt 0:10:55]} 15. cxd5 {[%emt 0:00:33]} Qb6 {[%emt 0:05:04]} 16. e4 {[%emt 0:01:20]} Nc7 {[%emt 0:01:23]} 17. Nc3 {[%emt 0:00:37]} d6 {[%emt 0:00:15]} 18. Nd2 {[%emt 0:02:34]} Ba6 {[%emt 0:00:05]} 19. Bc4 {[%emt 0:02:50]} Re8 {[%emt 0:05:10]} 20. Qa4 {[%emt 0:02:23]} Qb4 {[%emt 0:01:30]} 21. Qc6 {[%emt 0:08:55]} Bxc3 {[%emt 0:13:18]} 22. a3 {[%emt 0:02:22]} Qa5 {[%emt 0:07:04]} 23. bxc3 {[%emt 0:00:43]} Qxc3 {[%emt 0:03:27]} 24. Bxa6 {[%emt 0:00:03]} Nxa6 {[%emt 0:00:07]} 25. Nf3 {[%emt 0:00:38]} Qa5 {[%emt 0:02:30]} 26. e5 {[%emt 0:01:37]} Rad8 {[%emt 0:12:33]} 27. exd6 {[%emt 0:02:04]} Nb8 {[%emt 0:00:12]} 28. Qc7 {[%emt 0:00:13]} Qxa3 {[%emt 0:02:36]} 29. Ne5 {[%emt 0:01:09]} 1-0

[Event "51st Rilton Cup 2023-24"]
[Site "Stockholm"]
[Date "2024.01.05"]
[Round "9.15"]
[White "Srihari L"]
[Black "Olsson, William"]
[Result "1-0"]
[ECO "B72"]
[WhiteElo "2272"]
[BlackElo "2379"]
[Annotator "RC"]
[PlyCount "75"]
[EventDate "2023.12.27"]
[EventType "swiss"]
[EventCountry "SWE"]
[SourceTitle "playchess.com"]
[Source "ChessBase"]
[SourceQuality "1"]
[TimeControl "40/5400+30:1800+30"]

1. e4 {[%emt 0:07:26]} c5 {[%emt 0:00:41]} 2. Nf3 {[%emt 0:00:05]} d6 {[%emt 0:00:04]} 3. d4 {[%emt 0:00:09]} cxd4 {[%emt 0:00:03]} 4. Nxd4 {[%emt 0:00:05]} Nf6 {[%emt 0:00:04]} 5. Nc3 {[%emt 0:00:04]} g6 {[%emt 0:00:04]} 6. Be3 {[%emt 0:00:05]} Nc6 {[%emt 0:00:03]} 7. f3 {[%emt 0:00:10]} h5 {[%emt 0:00:07]} 8. Bc4 {[%emt 0:00:51]} Bd7 {[%emt 0:00:05]} 9. Qd2 {[%emt 0:00:44]} Nxd4 {[%emt 0:00:06]} 10. Bxd4 {[%emt 0:07:23]} Bh6 {[%emt 0:00:21]} 11. Qd3 {[%emt 0:00:06]} O-O {[%emt 0:11:46]} 12. O-O {[%emt 0:04:38]} Bg7 {[%emt 0:05:14]} 13. Rad1 {[%emt 0:03:58]} a6 {[%emt 0:03:40]} 14. a4 {[%emt 0:02:21]} Rc8 {[%emt 0:04:26]} 15. Rfe1 {[%emt 0:04:52]} e6 {[%emt 0:09:31]} 16. Bb3 {[%emt 0:04:40]} Ne8 {[%emt 0:01:23]} 17. Bxg7 {[%emt 0:08:35]} Kxg7 {[%emt 0:00:17]} 18. Qd4+ {[%emt 0:00:18]} Kh7 {[%emt 0:01:03]} 19. Qb4 {[%emt 0:02:55]} Bc6 {[%emt 0:16:37]} 20. e5 {[%emt 0:07:59]} a5 {[%emt 0:00:57]} 21. Qa3 {[%emt 0:01:29]} Qb6+ {[%emt 0:00:06]} 22. Kf1 {[%emt 0:01:11]} Qc5 {[%emt 0:02:24]} 23. Qxc5 {[%emt 0:04:40]} dxc5 {[%emt 0:00:04]} 24. Bc4 {[%emt 0:00:12]} Nc7 {[%emt 0:05:45]} 25. Rd6 {[%emt 0:09:11]} Kg7 {[%emt 0:03:39]} 26. Red1 {[%emt 0:04:36]} Rfe8 {[%emt 0:04:25]} 27. Bb5 {[%emt 0:00:54]} Bxb5+ {[%emt 0:00:18]} 28. axb5 {[%emt 0:00:12]} Re7 {[%emt 0:04:26]} 29. b6 {[%emt 0:03:20]} Na6 {[%emt 0:00:52]} 30. Rd7 {[%emt 0:02:33]} Kf8 {[%emt 0:02:12]} 31. Ne4 {[%emt 0:01:09]} Rc6 {[%emt 0:00:26]} 32. Rd8+ {[%emt 0:01:35]} Re8 {[%emt 0:01:33]} 33. Nf6 {[%emt 0:00:11]} Rxd8 {[%emt 0:00:10]} 34. Rxd8+ {[%emt 0:00:03]} Kg7 {[%emt 0:00:07]} 35. g4 {[%emt 0:02:17]} hxg4 {[%emt 0:03:06]} 36. fxg4 {[%emt 0:00:09]} g5 {[%emt 0:00:06]} 37. Rg8+ {[%emt 0:00:06]} Kh6 {[%emt 0:00:09]} 38. h4 {[%emt 0:00:04]} 1-0

[Event "51st Rilton Cup 2023-24"]
[Site "Stockholm"]
[Date "2024.01.05"]
[Round "9.16"]
[White "Aradhya, Garg"]
[Black "Kokoszczynski, Jan"]
[Result "1-0"]
[ECO "D37"]
[WhiteElo "2390"]
[BlackElo "2250"]
[Annotator "RC"]
[PlyCount "73"]
[EventDate "2023.12.27"]
[EventType "swiss"]
[EventCountry "SWE"]
[SourceTitle "playchess.com"]
[Source "ChessBase"]
[SourceQuality "1"]
[TimeControl "40/5400+30:1800+30"]

1. d4 {[%emt 0:04:28]} d5 {[%emt 0:00:13]} 2. c4 {[%emt 0:00:07]} e6 {[%emt 0:00:09]} 3. Nc3 {[%emt 0:00:41]} h6 {[%emt 0:00:30]} 4. Nf3 {[%emt 0:00:11]} Nf6 {[%emt 0:00:11]} 5. g3 {[%emt 0:00:55]} Nc6 {[%emt 0:00:42]} 6. Bg2 {[%emt 0:00:12]} Bd6 {[%emt 0:00:25]} 7. O-O {[%emt 0:00:57]} O-O {[%emt 0:00:27]} 8. b3 {[%emt 0:04:27]} Re8 {[%emt 0:00:24]} 9. Bf4 {[%emt 0:03:30]} g5 {[%emt 0:14:48]} 10. Bxd6 {[%emt 0:00:48]} cxd6 {[%emt 0:00:17]} 11. Rc1 {[%emt 0:00:36]} dxc4 {[%emt 0:04:27]} 12. e4 {[%emt 0:08:09]} e5 {[%emt 0:09:26]} 13. d5 {[%emt 0:01:51]} Nb4 {[%emt 0:00:28]} 14. bxc4 {[%emt 0:05:19]} Na6 {[%emt 0:12:16]} 15. h4 {[%emt 0:00:48]} Bg4 {[%emt 0:01:55]} 16. hxg5 {[%emt 0:00:17]} hxg5 {[%emt 0:00:22]} 17. Qd2 {[%emt 0:00:41]} Nh7 {[%emt 0:00:18]} 18. Nh2 {[%emt 0:14:40]} Bh5 {[%emt 0:00:03]} 19. Bf3 {[%emt 0:07:46]} Bg6 {[%emt 0:13:56]} 20. Ng4 {[%emt 0:00:44]} Nc5 {[%emt 0:00:48]} 21. Kg2 {[%emt 0:00:45]} Nf6 {[%emt 0:10:53]} 22. Qxg5 {[%emt 0:07:11]} Nfxe4 {[%emt 0:01:23]} 23. Nxe4 {[%emt 0:02:51]} Nxe4 {[%emt 0:00:04]} 24. Qh6 {[%emt 0:02:52]} Nf6 {[%emt 0:05:16]} 25. Rh1 {[%emt 0:00:09]} Nh7 {[%emt 0:00:03]} 26. Rce1 {[%emt 0:05:26]} e4 {[%emt 0:01:04]} 27. Be2 {[%emt 0:06:45]} Rf8 {[%emt 0:04:01]} 28. Qf4 {[%emt 0:01:46]} f5 {[%emt 0:00:36]} 29. Rh6 {[%emt 0:02:01]} fxg4 {[%emt 0:07:01]} 30. Rxg6+ {[%emt 0:01:02]} Kh8 {[%emt 0:00:05]} 31. Qxe4 {[%emt 0:00:19]} Qb6 {[%emt 0:00:13]} 32. Qe3 {[%emt 0:01:39]} Qb2 {[%emt 0:00:05]} 33. Rh1 {[%emt 0:02:45]} Rf7 {[%emt 0:00:03]} 34. Rxg4 {[%emt 0:02:01]} Raf8 {[%emt 0:00:24]} 35. f4 {[%emt 0:01:37]} Qxa2 {[%emt 0:01:03]} 36. Qc3+ {[%emt 0:00:56]} Rf6 {[%emt 0:00:06]} 37. Kf3 {[%emt 0:00:06]} 1-0

[Event "51st Rilton Cup 2023-24"]
[Site "Stockholm"]
[Date "2024.01.05"]
[Round "9.17"]
[White "Dragicevic, Drazen"]
[Black "Costa, Leonardo"]
[Result "0-1"]
[ECO "A46"]
[WhiteElo "2322"]
[BlackElo "2472"]
[Annotator "TA"]
[PlyCount "50"]
[EventDate "2023.12.27"]
[EventType "swiss"]
[EventCountry "SWE"]
[SourceTitle "playchess.com"]
[Source "ChessBase"]
[SourceQuality "1"]
[TimeControl "40/5400+30:1800+30"]

{[%evp 9,50,22,18,6,9,23,17,8,31,-2,0,0,0,0,0,-30,-26,-30,-16,-50,-26,-25,-14,-27,-43,-54,-56,-47,0,0,29,6,25,-5,-10,-11,-8,-137,-139,-29990,-1945,-29991,-29992]} 1. Nf3 {[%emt 0:02:54]} d5 {[%emt 0:00:06]} 2. d4 {[%emt 0:00:24]} Nf6 {[%emt 0:00:05]} 3. g3 {[%emt 0:00:06]} e6 {[%emt 0:00:10]} 4. Bg2 {[%emt 0:00:18]} Be7 {[%emt 0:00:20]} 5. O-O {[%emt 0:04:18]} b5 {[%emt 0:00:14]} 6. a4 {[%emt 0:01:32] A46: 1 d4 Nf6 2 Nf3 e6: Torre, London and Colle Systems.} b4 {[%emt 0:02:21] [#]} 7. c4 $1 {[%emt 0:02:48]} bxc3 {[%emt 0:00:03]} 8. bxc3 {[%emt 0:04:11] The position is equal.} Ba6 {[%emt 0:04:29]} 9. Nbd2 {[%emt 0:07:13]} Nbd7 {[%emt 0:07:23]} 10. c4 {[%emt 0:05:45]} c5 {[%emt 0:02:17] [#]} 11. dxc5 $146 {[%emt 0:25:40]} ({Predecessor:} 11. Ne5 Rc8 12. cxd5 Nxe5 13. dxe5 Nxd5 14. Ne4 O-O 15. Bb2 Rb8 16. Rb1 Qa5 17. Qc2 {0-1 Perez Vega,L (1765)-Montes Cervantes,R (2063) MEX-ch U26 Merida 2019 (4)}) 11... Nxc5 {[%emt 0:01:22]} 12. cxd5 {[%emt 0:03:12]} Nxd5 {[%emt 0:00:58]} 13. Bb2 {[%emt 0:00:20] Against Nc3} O-O {[%emt 0:00:19]} 14. Nd4 {[%emt 0:04:12]} Qd7 {[%emt 0:02:38] Prevents Nc6} 15. Ne4 {[%emt 0:13:37]} Rab8 {[%emt 0:05:17] ...Nxe4 would be deadly.} 16. Nxc5 {[%emt 0:00:48]} Bxc5 {[%emt 0:00:09]} 17. Rc1 {[%emt 0:08:09]} Rfc8 {[%emt 0:12:14]} 18. Ba1 {[%emt 0:01:15][%cal Od4f5]} Bb6 {[%emt 0:01:16]} (18... Bf8 $15 {should be considered.}) 19. Qd2 $11 {[%emt 0:02:31]} Qxa4 {[%emt 0:24:33]} 20. Bxd5 {[%emt 0:01:00][%cal Od4e6] Threatens to win with Nxe6!} exd5 {[%emt 0:00:36]} 21. Nf5 {[%emt 0:00:30] Hoping for Qg5.} Rxc1 {[%emt 0:00:04]} 22. Rxc1 {[%emt 0:01:47] Qg5 is the strong threat.} Qg4 {[%emt 0:00:03][%csl LRe2,LRf5] Against Qg5. The board is on fire.} 23. Qxd5 {[%emt 0:02:12]} (23. Ne7+ $11 {remains equal.} Kh8 24. Nxd5) 23... Qxe2 $17 {[%emt 0:05:01]} 24. Bxg7 $2 {[%emt 0:05:01][%mdl 8192]} (24. Bd4 $17 Rd8 25. Qe5 Qxe5 26. Bxe5) 24... Qxf2+ {[%emt 0:00:32]} (24... Bb7 $2 25. Nh6+ (25. Qxb7 Qxf2+ 26. Kh1 Qxf5 $16) 25... Kxg7 26. Qg5+ Kf8 27. Qg8+ {[%mdl 64] Skewer, Double Attack} Ke7 28. Qxf7+ Kd8 29. Qf8+ Kd7 30. Qg7+ Ke8 31. Qf7+ (31. Qxh7 $2 Bxf2#) 31... Kd8 32. Qf6+ Ke8 33. Qf7+ Kd8 $18) 25. Kh1 {[%emt 0:00:02] [#]} Qxf5 $3 {[%emt 0:00:22][%mdl 576] Deflection. A cool game by Costa.   Weighted Error Value: White=0.46/Black=0.06 (flawless)} 0-1

[Event "51st Rilton Cup 2023-24"]
[Site "Stockholm"]
[Date "2024.01.05"]
[Round "9.18"]
[White "Anand, Batsukh"]
[Black "Terrieux, Kevin"]
[Result "1/2-1/2"]
[ECO "A08"]
[WhiteElo "2263"]
[BlackElo "2432"]
[Annotator "RC"]
[PlyCount "115"]
[EventDate "2023.12.27"]
[EventType "swiss"]
[EventCountry "SWE"]
[SourceTitle "playchess.com"]
[Source "ChessBase"]
[SourceQuality "1"]
[TimeControl "40/5400+30:1800+30"]

1. Nf3 {[%emt 0:00:06]} c5 {[%emt 0:01:53]} 2. g3 {[%emt 0:00:09]} g6 {[%emt 0:00:24]} 3. Bg2 {[%emt 0:00:06]} Bg7 {[%emt 0:00:09]} 4. O-O {[%emt 0:00:06]} Nc6 {[%emt 0:00:34]} 5. d3 {[%emt 0:01:18]} d5 {[%emt 0:06:38]} 6. c3 {[%emt 0:02:08]} Nf6 {[%emt 0:01:51]} 7. Nbd2 {[%emt 0:08:20]} O-O {[%emt 0:04:20]} 8. e4 {[%emt 0:03:18]} e5 {[%emt 0:01:28]} 9. exd5 {[%emt 0:00:09]} Nxd5 {[%emt 0:00:41]} 10. Nc4 {[%emt 0:00:44]} h6 {[%emt 0:06:34]} 11. Re1 {[%emt 0:02:27]} Re8 {[%emt 0:02:14]} 12. Qb3 {[%emt 0:00:45]} Nc7 {[%emt 0:06:54]} 13. Be3 {[%emt 0:02:06]} b5 {[%emt 0:36:30]} 14. Na3 {[%emt 0:03:36]} Be6 {[%emt 0:01:46]} 15. Qc2 {[%emt 0:00:53]} Bf5 {[%emt 0:04:11]} 16. Rad1 {[%emt 0:07:41]} c4 {[%emt 0:05:01]} 17. Qc1 {[%emt 0:03:07]} Bxd3 {[%emt 0:04:18]} 18. Bxh6 {[%emt 0:00:56]} e4 {[%emt 0:04:20]} 19. Bxg7 {[%emt 0:00:55]} Kxg7 {[%emt 0:00:55]} 20. Ng5 {[%emt 0:00:31]} f5 {[%emt 0:00:02]} 21. f3 {[%emt 0:04:32]} e3 {[%emt 0:01:32]} 22. Rxe3 {[%emt 0:00:51]} Qxg5 {[%emt 0:00:08]} 23. Rexd3 {[%emt 0:00:29]} Qxc1 {[%emt 0:00:07]} 24. Rd7+ {[%emt 0:00:07]} Re7 {[%emt 0:00:09]} 25. Rxe7+ {[%emt 0:00:12]} Nxe7 {[%emt 0:00:05]} 26. Rxc1 {[%emt 0:00:04]} Rd8 {[%emt 0:01:12]} 27. b3 {[%emt 0:05:37]} cxb3 {[%emt 0:02:20]} 28. axb3 {[%emt 0:00:13]} Rd2 {[%emt 0:02:01]} 29. Bf1 {[%emt 0:06:49]} a6 {[%emt 0:01:55]} 30. Nc2 {[%emt 0:00:58]} Nc6 {[%emt 0:00:32]} 31. f4 {[%emt 0:05:14]} Na5 {[%emt 0:00:17]} 32. Nd4 {[%emt 0:01:51]} Nd5 {[%emt 0:00:02]} 33. Ra1 {[%emt 0:03:18]} Nxc3 {[%emt 0:00:44]} 34. Ne6+ {[%emt 0:01:05]} Kf6 {[%emt 0:00:02]} 35. Rxa5 {[%emt 0:06:27]} Kxe6 {[%emt 0:00:02]} 36. Rxa6+ {[%emt 0:00:07]} Rd6 {[%emt 0:00:31]} 37. Rxd6+ {[%emt 0:06:38]} Kxd6 {[%emt 0:00:01]} 38. b4 {[%emt 0:00:31]} Ke7 {[%emt 0:02:19]} 39. Kf2 {[%emt 0:01:29]} Nd5 {[%emt 0:00:03]} 40. Bxb5 {[%emt 0:00:05]} Nxb4 {[%emt 0:00:05]} 41. Ke3 {[%emt 0:31:29]} Nd5+ {[%emt 0:30:39]} 42. Kd4 {[%emt 0:00:05]} Nf6 {[%emt 0:00:28]} 43. Be2 {[%emt 0:00:26]} Kd6 {[%emt 0:01:00]} 44. Bf3 {[%emt 0:01:03]} Nd7 {[%emt 0:02:29]} 45. Bd5 {[%emt 0:01:07]} Ke7 {[%emt 0:02:43]} 46. h3 {[%emt 0:00:45]} Nf6 {[%emt 0:00:21]} 47. Bf3 {[%emt 0:00:15]} Kd6 {[%emt 0:00:00]} 48. g4 {[%emt 0:00:00]} fxg4 {[%emt 0:00:00]} 49. hxg4 {[%emt 0:00:00]} g5 {[%emt 0:00:00]} 50. fxg5 {[%emt 0:00:00]} Nh7 {[%emt 0:00:00]} 51. g6 {[%emt 0:00:00]} Nf8 {[%emt 0:00:00]} 52. Be4 {[%emt 0:00:00]} Ne6+ {[%emt 0:00:00]} 53. Kc4 {[%emt 0:00:00]} Ke7 {[%emt 0:00:00]} 54. Bf5 {[%emt 0:00:00]} Nf4 {[%emt 0:00:00]} 55. g5 {[%emt 0:00:00]} Kf8 {[%emt 0:00:00]} 56. Kd4 {[%emt 0:00:00]} Kg7 {[%emt 0:00:00]} 57. Ke5 {[%emt 0:00:00]} Nxg6+ {[%emt 0:00:00]} 58. Bxg6 {[%emt 0:00:00]} 1/2-1/2

[Event "51st Rilton Cup 2023-24"]
[Site "Stockholm"]
[Date "2024.01.05"]
[Round "9.19"]
[White "Akesson, Ralf"]
[Black "Marn, Jan"]
[Result "0-1"]
[ECO "D37"]
[WhiteElo "2387"]
[BlackElo "2322"]
[Annotator "RC"]
[PlyCount "60"]
[EventDate "2023.12.27"]
[EventType "swiss"]
[EventCountry "SWE"]
[SourceTitle "playchess.com"]
[Source "ChessBase"]
[SourceQuality "1"]
[TimeControl "40/5400+30:1800+30"]

1. d4 {[%emt 0:10:28]} d5 {[%emt 0:00:42]} 2. c4 {[%emt 0:00:00]} e6 {[%emt 0:00:05]} 3. Nf3 {[%emt 0:00:00]} Nf6 {[%emt 0:01:35]} 4. Nc3 {[%emt 0:00:00]} h6 {[%emt 0:13:24]} 5. a3 {[%emt 0:00:00]} a6 {[%emt 0:00:00]} 6. e3 {[%emt 0:02:12]} Be7 {[%emt 0:00:00]} 7. b4 {[%emt 0:04:41]} O-O {[%emt 0:00:00]} 8. Bb2 {[%emt 0:02:29]} b6 {[%emt 0:03:59]} 9. Bd3 {[%emt 0:09:26]} dxc4 {[%emt 0:00:27]} 10. Bxc4 {[%emt 0:00:07]} Bb7 {[%emt 0:00:05]} 11. Qb3 {[%emt 0:07:25]} Nbd7 {[%emt 0:00:46]} 12. Rd1 {[%emt 0:01:22]} Qc8 {[%emt 0:05:06]} 13. O-O {[%emt 0:08:54]} c5 {[%emt 0:01:51]} 14. Ne5 {[%emt 0:09:56]} Nxe5 {[%emt 0:11:18]} 15. dxe5 {[%emt 0:00:14]} Ng4 {[%emt 0:00:16]} 16. Nb1 {[%emt 0:25:26]} Qc6 {[%emt 0:12:38]} 17. f3 {[%emt 0:12:19]} cxb4 {[%emt 0:14:54]} 18. Rc1 {[%emt 0:00:00]} Bc5 {[%emt 0:06:03]} 19. Bd4 {[%emt 0:05:15]} Rfd8 {[%emt 0:07:51]} 20. axb4 {[%emt 0:00:00]} Bxd4 {[%emt 0:00:07]} 21. exd4 {[%emt 0:00:00]} Rac8 {[%emt 0:00:03]} 22. Qa3 {[%emt 0:00:00]} Qd7 {[%emt 0:01:08]} 23. Rfd1 {[%emt 0:00:00]} Nxe5 {[%emt 0:00:10]} 24. Bf1 {[%emt 0:00:18]} Rxc1 {[%emt 0:01:06]} 25. Qxc1 {[%emt 0:00:06]} Nc6 {[%emt 0:00:45]} 26. b5 {[%emt 0:00:29]} Nxd4 {[%emt 0:00:20]} 27. bxa6 {[%emt 0:01:01]} Bxa6 {[%emt 0:00:45]} 28. Nc3 {[%emt 0:00:53]} Bxf1 {[%emt 0:00:41]} 29. Kxf1 {[%emt 0:00:12]} Qc7 {[%emt 0:06:37]} 30. Qb2 {[%emt 0:01:45]} Nf5 {[%emt 0:02:44]} 0-1